Cogmind - Beta 14 @@@ ROGUE MODE // 2024.11.12 @ 22:51:21 Player: ThatGuyMcfly Result: Destroyed by Y-54 Guardian with Flak Gun Performance ------------- Evolutions (3) 1500 Regions Visited (5) 1000 Robots Destroyed (47) 235 Value Destroyed (1429) 1429 Prototype IDs (2) 40 Alien Tech Used (0) 0 Bonus (200) 200 TOTAL SCORE: 4404 Bonus ------- Entered Garrisons 200 Cogmind --------- Core Integrity 0/700 Matter 213/300 Energy 50/275 System Corruption 0% Temperature Cool (18) Movement Walking (120) Location -7/Garrison Parts ------- > --- POWER (2) -------- Deuterium Engine > --- PROPULSION (2) --- Carbon-fiber Leg Carbon-fiber Leg > --- UTILITY (5) ------ Medium Storage Unit Melee Analysis Suite > --- WEAPON (4) ------- Light Assault Rifle > --- INVENTORY (10) --- Improved Flight Unit Cesium-ion Thruster Medium Storage Unit Signal Interpreter Melee Analysis Suite Pulse Rifle Peak State ------------ > --- POWER ------------ Light Nuclear Core Light Nuclear Core > --- PROPULSION ------- Carbon-fiber Leg Carbon-fiber Leg > --- UTILITY ---------- Medium Storage Unit Compact Battery Advanced Targeting Computer Melee Analysis Suite Hardened Medium Armor Plating > --- WEAPON ----------- Improved Medium Laser Gauss Rifle Katana > --- INVENTORY -------- Light Nuclear Core Carbon-fiber Leg Carbon-fiber Leg Improved Flight Unit Cesium-ion Thruster Medium Storage Unit Signal Interpreter Melee Analysis Suite Pulse Rifle Light Assault Rifle [Rating: 37] Favorites ----------- Power Light Nuclear Core Engine Ion Engine Power Core Light Nuclear Core Propulsion Carbon-fiber Leg Treads Light Treads Leg Carbon-fiber Leg Wheel Wheel Utility Melee Analysis Suite Device Seismic Detector Storage Small Storage Unit Processor Melee Analysis Suite Protection Hardened Medium Armor Plating Weapon Katana Energy Gun Small Laser Ballistic Gun Gauss Rifle Slashing Weapon Katana Build | -11 -10 -9 -8 -7 -7 ------- Run | Yrd Mat Mat Mat Fac Gar Slots Evolved 6 | . . 2 2 2 . Power 1 | . . . 1 . . Propulsion . | . . . . . . Utility 3 | . . 1 1 1 . Weapon 2 | . . 1 . 1 . Parts Attached 61 | 7 6 15 24 2 7 Power 15 | 1 . 3 8 . 3 Engine 9 | 1 . 3 3 . 2 Core 6 | . . . 5 . 1 Reactor . | . . . . . . Propulsion 18 | 2 5 2 7 . 2 Treads 2 | . . 2 . . . Leg 14 | 2 5 . 5 . 2 Wheel 2 | . . . 2 . . Hover . | . . . . . . Flight . | . . . . . . Utility 11 | 2 . 3 4 1 1 Device 1 | 1 . . . . . Storage 5 | 1 . 1 1 1 1 Processor 3 | . . 2 1 . . Hackware . | . . . . . . Protection 2 | . . . 2 . . Artifact . | . . . . . . Weapon 17 | 2 1 7 5 1 1 Energy Gun 7 | 1 . 3 2 1 . Energy Cannon . | . . . . . . Ballistic Gun 8 | 1 1 3 2 . 1 Ballistic Cannon . | . . . . . . Launcher . | . . . . . . Special Weapon . | . . . . . . Impact Weapon . | . . . . . . Slashing Weapon 2 | . . 1 1 . . Piercing Weapon . | . . . . . . Special Melee Weapon . | . . . . . . Unidentified Prototypes 1 | . . . . 1 . Parts Lost 22 | . . 7 5 . 10 Power 7 | . . 2 3 . 2 Propulsion 4 | . . 2 . . 2 Utility 5 | . . 1 1 . 3 Weapon 6 | . . 2 1 . 3 Highest Loss Streak 10 | . . 4 3 . 10 To Critical Strikes . | . . . . . . Average Slot Usage (%) 92 | . 99 89 93 84 83 Engine 8 | . 14 9 7 . 1 Core 5 | . . . 8 15 11 Treads 2 | . . 11 . . . Leg 15 | . 27 7 12 15 14 Wheel 1 | . . . 4 . . Device 5 | . 14 9 . . . Storage 10 | . 14 12 9 7 11 Processor 10 | . . 7 17 15 13 Protection 4 | . . . 7 7 6 Energy Gun 10 | . 14 11 8 7 6 Ballistic Gun 10 | . 13 12 8 7 6 Slashing Weapon 5 | . . 6 8 7 6 Peak Build Rating 37 | 7 7 15 34 34 37 Average Rating 19 | 5 6 12 26 34 33 On Entrance 15 | . 7 7 12 34 34 Naked Turns . | . . . . . . Heaviest Build 42 | 15 15 20 37 37 42 Greatest Support 40 | 20 20 40 30 30 30 Greatest Overweight (x) 4 | 1 4 1 2 1 2 Average Overweight (x) . | . . . . 1 1 Largest Inventory Capacity 10 | 8 8 8 10 10 10 Average Capacity 8 | 7 8 8 9 10 10 Most Carried 10 | 7 8 8 10 10 10 Average Carried 7 | 3 7 6 8 10 9 Final Capacity 10 | 8 8 8 10 10 10 Final Carried 10 | 7 8 6 10 10 6 Class Distribution -------------------- 55% | Mutant 39% | Scavenger-Mutant 3% | Gunner Dominant Class ---------------- Mutant | -10/Materials Mutant | -9/Materials Scavenger-Mutant | -8/Materials Scavenger-Mutant | -7/Factory Scavenger-Mutant | -7/Garrison Resources | -11 -10 -9 -8 -7 -7 ----------- Run | Yrd Mat Mat Mat Fac Gar Matter Collected 966 | 279 93 223 284 86 1 Remotely . | . . . . . . Salvage Created 2759 | 70 379 320 922 86 982 Parts 120 | 5 23 23 43 2 24 Haulers Intercepted . | . . . . . . Recyclers Shooed 1 | . . 1 . . . Parts Field Recycled . | . . . . . . Retrieved Matter . | . . . . . . Parts Self-Destructed . | . . . . . . Prevented . | . . . . . . Kills | -11 -10 -9 -8 -7 -7 ------- Run | Yrd Mat Mat Mat Fac Gar Combat Hostiles Destroyed 31 | . 8 7 13 . 3 Melee 9 | . . 1 8 . . Guns 22 | . 8 6 5 . 3 Classes Destroyed 13 | 2 3 3 5 . . Worker 2 | . 1 1 . . . Builder 4 | . . 3 1 . . Tunneler 3 | 1 . . 1 1 . Recycler 4 | 1 . 1 2 . . Mechanic 2 | . . . 1 1 . Watcher 1 | . 1 . . . . Swarmer 3 | . . 3 . . . Grunt 16 | . 8 3 5 . . Brawler 1 | . . . 1 . . Duelist 2 | . . 1 1 . . Sentry 4 | . . . 1 . 3 Specialist 2 | . . . 2 . . Hunter 3 | . . . 3 . . Best Kill Streak 5 | 1 3 4 5 1 3 Combat Bots Only 5 | . 3 3 5 . 3 Max Kills in Single Turn 2 | 1 2 1 1 1 1 Gunslinging . | . . . . . . Exploded . | . . . . . . Melee 1 | . . 1 1 . . Uniques/NPCs Destroyed . | . . . . . . Combat | -11 -10 -9 -8 -7 -7 -------- Run | Yrd Mat Mat Mat Fac Gar Hostile Shots Fired 455 | . 50 104 139 . 162 Missed 136 | . 16 34 45 . 41 Damage Taken 4218 | . 376 926 1320 . 1596 Core 1226 | . 90 197 238 . 701 Absorbed by Shields . | . . . . . . Regen/Repaired (Parts) 69 | . . . 69 . . Core Remaining (%) 67 | 100 64 50 56 . . Volleys Fired 132 | 6 38 36 39 . 13 Largest 3 | 2 2 3 2 . 2 Hottest 108 | 70 70 108 91 . 84 Shots Fired 253 | 12 71 76 71 . 23 Gun 253 | 12 71 76 71 . 23 Cannon . | . . . . . . Launcher . | . . . . . . Special . | . . . . . . Kinetic 120 | 6 33 36 32 . 13 Thermal 133 | 6 38 40 39 . 10 Explosive . | . . . . . . Electromagnetic . | . . . . . . Robot Hit Streak 17 | 3 5 7 6 . 17 Robot Miss Streak 4 | 2 3 3 4 . 1 Penetration Max 1 | . . . . . 1 Secondary Targets 3 | . 1 1 . . 1 Max Gunslinging Chain 1 | . 1 1 . . 1 Shots Hit Robots 234 | 7 43 59 71 2 52 Core Hits 88 | 3 18 16 28 . 23 Critical Kills . | . . . . . . Critical Parts Destroyed 2 | . . 1 . . 1 Critical Strikes 15 | . 3 2 7 . 3 Burn 4 | . 3 . 1 . . Destroy 2 | . . 1 . . 1 Sever 9 | . . 1 6 . 2 Melee Attacks 92 | . . 15 44 2 31 Impact . | . . . . . . Slashing 92 | . . 15 44 2 31 Piercing . | . . . . . . Sneak Attacks 13 | . . 5 5 2 1 Combat Hostiles . | . . . . . . Follow-up Attacks . | . . . . . . Damage Inflicted 5850 | 81 514 1148 1796 139 2172 Guns 2204 | 80 504 670 583 . 367 Cannons . | . . . . . . Explosions . | . . . . . . Melee 3635 | . . 478 1213 139 1805 Ramming 11 | 1 10 . . . . Kinetic 1074 | 44 191 312 316 . 211 Thermal 1130 | 36 313 358 267 . 156 Explosive . | . . . . . . Electromagnetic . | . . . . . . Impact . | . . . . . . Slashing 3635 | . . 478 1213 139 1805 Piercing . | . . . . . . Highest Corruption 3 | . . . 3 . . Average Corruption 2 | . . . 2 . . Corruption Purged . | . . . . . . Corruption Blocked . | . . . . . . Effects 4 | . . . 4 . . Message Errors 1 | . . . 1 . . Matter Fused 1 | . . . 1 . . Heat Flow Errors 1 | . . . 1 . . Weapon Failures 1 | . . . 1 . . Overload Shots . | . . . . . . Overflow Damage 236 | . . 41 125 59 11 Projectiles . | . . . . . . Explosions . | . . . . . . Melee 236 | . . 41 125 59 11 Knockbacks . | . . . . . . Impact . | . . . . . . Kinetic . | . . . . . . Secondary . | . . . . . . Self-Inflicted Damage . | . . . . . . Shots . | . . . . . . Rammed . | . . . . . . Targets Rammed 5 | 2 3 . . . . Kicked 5 | 2 3 . . . . Crushed . | . . . . . . Highest Temperature 441 | 27 224 360 369 . 441 Average Temperature 102 | 14 70 102 94 . 208 Received Heat Transfer 1231 | . 204 129 252 . 646 Effects 11 | . 3 1 4 . 3 Shutdowns 1 | . . . . . 1 Interference 7 | . 3 1 3 . . Short Circuit 2 | . . . 1 . 1 Damage (minor) 1 | . . . . . 1 Siege Activations . | . . . . . . Robots Corrupted . | . . . . . . Combat Hostiles . | . . . . . . Parts Fried . | . . . . . . Impact Corruptions . | . . . . . . Robots Melted . | . . . . . . Combat Hostiles . | . . . . . . Parts Melted 6 | . 5 1 . . . Heat Transferred 3078 | 111 1147 829 658 . 333 Parts Sabotaged . | . . . . . . Parts Stolen . | . . . . . . Parts Stripped . | . . . . . . Power Chain Reactions . | . . . . . . Alert | -11 -10 -9 -8 -7 -7 ------- Run | Yrd Mat Mat Mat Fac Gar Peak Influence 324 | 10 145 167 324 142 189 Initial 128 | . 6 52 37 128 99 Average 102 | 4 51 72 144 131 129 Maximum Alert Level 1 | . . . 1 . . Low Security (%) 87 | 100 100 100 66 100 100 Level 1 12 | . . . 33 . . Level 2 . | . . . . . . Level 3 . | . . . . . . Level 4 . | . . . . . . Level 5 . | . . . . . . High Security . | . . . . . . Max Security . | . . . . . . Squads Dispatched 13 | . 5 . 7 1 . Investigation 4 | . 3 . 1 . . Extermination 1 | . . . . 1 . Reinforcement 5 | . 2 . 3 . . Assault . | . . . . . . Garrison 3 | . . . 3 . . Intercept . | . . . . . . Searches Triggered . | . . . . . . Construction Impeded 1 | . . . 1 . . Haulers Reinforced . | . . . . . . Active Scanning Responses . | . . . . . . Cargo Convoy Interrupts . | . . . . . . Stealth | -11 -10 -9 -8 -7 -7 --------- Run | Yrd Mat Mat Mat Fac Gar Distress Signals 5 | . 2 . 2 . 1 Communications Jammed . | . . . . . . Distress Signals . | . . . . . . Times Spotted 62 | . 15 11 29 1 6 Peak Tracking Total 6 | . 4 4 4 1 6 Tactical Retreats 13 | . 3 2 8 . . Traps | -11 -10 -9 -8 -7 -7 ------- Run | Yrd Mat Mat Mat Fac Gar Traps Triggered 10 | . 3 2 2 . 3 Indirectly . | . . . . . . Trap Hack Attempts . | . . . . . . Triggered . | . . . . . . Disarmed . | . . . . . . Reprogrammed . | . . . . . . Reused . | . . . . . . Traps Extracted . | . . . . . . Installed . | . . . . . . Triggered . | . . . . . . Machines | -11 -10 -9 -8 -7 -7 ---------- Run | Yrd Mat Mat Mat Fac Gar Machines Disabled 5 | . . 2 3 . . Max in Single Turn 1 | . . 1 1 . . Machines Repaired . | . . . . . . Machines Dismantled . | . . . . . . Machines Sabotaged . | . . . . . . Overloaded Fab Kills . | . . . . . . Hacking | -11 -10 -9 -8 -7 -7 --------- Run | Yrd Mat Mat Mat Fac Gar Machines Accessed 10 | . 3 2 4 1 . Terminals 6 | . 3 2 1 . . Fabricators . | . . . . . . Repair Stations 1 | . . . 1 . . Recycling Units 1 | . . . 1 . . Scanalyzers 1 | . . . 1 . . Garrison Access 1 | . . . . 1 . Total Hacks 32 | . 9 6 16 1 . Successful 17 | . 3 . 13 1 . Failed 15 | . 6 6 3 . . Catastrophic . | . . . . . . Database Lockouts . | . . . . . . Manual . | . . . . . . Terminals 19 | . 9 6 4 . . Fabricators . | . . . . . . Repair Stations 5 | . . . 5 . . Recycling Units 4 | . . . 4 . . Scanalyzers 3 | . . . 3 . . Garrison Access 1 | . . . . 1 . Terminal Hacks 6 | . 3 . 3 . . Record 3 | . 1 . 2 . . Emergency Access Points 1 | . . . 1 . . Unreport Threat 1 | . 1 . . . . Locate Traps 1 | . 1 . . . . Fabricator Hacks . | . . . . . . Repair Station Hacks 4 | . . . 4 . . Scan Component 2 | . . . 2 . . Repair 2 | . . . 2 . . Recycling Unit Hacks 4 | . . . 4 . . Recycle Component 2 | . . . 2 . . Process 1 | . . . 1 . . Retrieve Components 1 | . . . 1 . . Scanalyzer 2 | . . . 2 . . Insert Component 1 | . . . 1 . . Analyze 1 | . . . 1 . . Garrison Access Hacks 1 | . . . . 1 . Unlock Access 1 | . . . . 1 . Unauthorized Hacks . | . . . . . . Terminals . | . . . . . . Fabricators . | . . . . . . Repair Stations . | . . . . . . Recycling Units . | . . . . . . Scanalyzers . | . . . . . . Garrison Access . | . . . . . . Data Cores Recovered . | . . . . . . Used . | . . . . . . Hacking Detections 6 | . 2 1 3 . . Full Trace Events 4 | . 2 . 2 . . Feedback Events . | . . . . . . Feedback Blocked . | . . . . . . Robot Schematics Acquired . | . . . . . . Robots Built . | . . . . . . Authchips . | . . . . . . Time . | . . . . . . Total Robot Build Rating . | . . . . . . Part Schematics Acquired 1 | . . . 1 . . Parts Built . | . . . . . . Authchips . | . . . . . . Time . | . . . . . . Total Part Build Rating . | . . . . . . Parts Repaired 2 | . . . 2 . . Time 64 | . . . 64 . . Parts Recycled 2 | . . . 2 . . Recycled Matter 21 | . . . 21 . . Retrieved Matter . | . . . . . . Retrieved Components . | . . . . . . Parts Scanalyzed 1 | . . . 1 . . Part Schematics Acquired 1 | . . . 1 . . Parts Damaged . | . . . . . . Bothacking | -11 -10 -9 -8 -7 -7 ------------ Run | Yrd Mat Mat Mat Fac Gar Used RIF Installer . | . . . . . . Robots Hacked . | . . . . . . Non-combat . | . . . . . . Combat . | . . . . . . Robot Hacks Applied . | . . . . . . Relay Couplers Released . | . . . . . . Fabnet Peak Effective % . | . . . . . . Robots Rewired . | . . . . . . Allies Hacked . | . . . . . . Hacks Repelled . | . . . . . . Allies | -11 -10 -9 -8 -7 -7 -------- Run | Yrd Mat Mat Mat Fac Gar Total Allies . | . . . . . . Largest Group . | . . . . . . Highest-Rated Group . | . . . . . . Highest-Rated Ally . | . . . . . . Total Orders . | . . . . . . Ally Attacks . | . . . . . . Total Damage . | . . . . . . Kills . | . . . . . . Allies Corrupted . | . . . . . . Allies Melted . | . . . . . . Intel | -11 -10 -9 -8 -7 -7 ------- Run | Yrd Mat Mat Mat Fac Gar Robot Analysis Total . | . . . . . . Derelict Logs Recovered . | . . . . . . Drone Launches . | . . . . . . Drone Recoveries . | . . . . . . Exploration | -11 -10 -9 -8 -7 -7 ------------- Run | Yrd Mat Mat Mat Fac Gar Turns Passed 3341 | 122 782 610 1260 260 307 Spaces Moved 1636 | 72 479 301 583 132 69 Core 4 | 3 1 . . . . Treads 173 | . . 142 31 . . Legs 1290 | 69 478 159 383 132 69 Wheels 169 | . . . 169 . . Hover . | . . . . . . Flight . | . . . . . . Fastest Speed 50 | 50 120 120 95 190 190 Average Speed 144 | 118 120 143 151 190 191 Slowest Speed 260 | 120 250 190 260 190 260 Overloaded Moves . | . . . . . . Propulsion Burnouts . | . . . . . . Robots Hopped . | . . . . . . Cave-ins Triggered . | . . . . . . Exploration Rate (%) 24 | 7 64 26 35 4 11 Regions Visited 5 Branch Regions . Pre-discovered Areas . | . . . . . . Known Exits Taken 1 | . . . . 1 . Unknown Exits Taken 4 | 1 1 1 1 . . Scrap Searched . | . . . . . . Spaces Dug . | . . . . . . Terrain Destroyed . | . . . . . . Melee . | . . . . . . Projectile . | . . . . . . AOE . | . . . . . . Terrain Rammed . | . . . . . . Walls Destroyed . | . . . . . . Machines Disabled . | . . . . . . Actions | -11 -10 -9 -8 -7 -7 --------- Run | Yrd Mat Mat Mat Fac Gar Total 2232 | 93 617 394 815 138 175 Wait 259 | . 86 22 111 1 39 Move 1631 | 71 478 300 582 131 69 Hop . | . . . . . . Pick Up 21 | 7 3 1 9 1 . Fast Attach 25 | 7 3 6 8 . 1 Attach 12 | . 1 4 3 . 4 Detach 1 | . . 1 . . . Swap 24 | . 2 5 13 2 2 Drop 15 | . 3 4 6 1 1 Fire 132 | 6 38 36 39 . 13 Melee 92 | . . 15 44 2 31 Ram . | . . . . . . Kick 5 | 2 3 . . . . Crush . | . . . . . . Escape Stasis 15 | . . . . . 15 Rewire . | . . . . . . Trap . | . . . . . . Miscellaneous . | . . . . . . Route ------- -11/Scrapyard -10/Materials (discovered 3 exits: *Mat x2 / [*Min]) -9/Materials (discovered 2 exits: *Mat / [*Min]) -8/Materials -7/Factory -7/Garrison History --------- Turn | Location | Event 7 | -11/Scrapyard | Discovered new exit (range 15) 123 | -11/Scrapyard | Entered Materials 281 | -10/Materials | Discovered new exit (range 16) 314 | -10/Materials | Build established: Mutant 319 | -10/Materials | Discovered new exit (range 16) 694 | -10/Materials | Discovered new exit (range 9) 905 | -10/Materials | Entered another Materials area 905 | -9/Materials | Evolved 2 slots: Utility x1, Weapon x1 984 | -9/Materials | Discovered new exit (range 16) 1368 | -9/Materials | Discovered new exit (range 15) 1450 | -9/Materials | Lost 4 parts (1p1n1u1w) 1515 | -9/Materials | Entered another Materials area 1515 | -8/Materials | Evolved 2 slots: Power x1, Utility x1 1647 | -8/Materials | Repaired Katana 1675 | -8/Materials | Repaired Sml. Laser 2185 | -8/Materials | Garrison activated, responded to threat 2327 | -8/Materials | Lost 3 parts (1p1u1w) 2551 | -8/Materials | Build established: Scavenger-Mutant 2725 | -8/Materials | Discovered new exit (range 16) 2775 | -8/Materials | Entered Factory 2775 | -7/Factory | Evolved 2 slots: Utility x1, Weapon x1 3012 | -7/Factory | Identified exit to Garrison 3035 | -7/Factory | Entered Garrison 3298 | -7/Garrison | Spotted B-75 Beast 3331 | -7/Garrison | Core integrity fell below 50% 3340 | -7/Garrison | Core integrity fell below 20% 3342 | -7/Garrison | Destroyed by Y-54 Guardian with Flak Gun Last Messages --------------- Y-54 Guardian destroyed. Overheating: Katana damaged (-6). Critical hit (Meltdown: +310). Adv. Targeting Computer destroyed. Knocked back. Acquired 1 matter. Slug penetrates B-75 Beast. Carbon-fiber Leg broken. Overheating: Short circuit. Power failure, Lgt. Nuclear Core shutdown. Lgt. Nuclear Core destroyed. Critical hit (Blast). B-75 Beast Imp. Medium Treads severed. Gauss Rifle destroyed. Hrd. Medium Armor Plating destroyed. Broken Carbon-fiber Leg destroyed. Imp. Medium Laser destroyed. Carbon-fiber Leg destroyed. Katana destroyed. Com. Battery destroyed. Map ----- +----------------------------------------------------+ | ??????????????????????????????? | | ??????????????????????????????? | | ??????????????????????????????? | | ??????????????????????????????? | | ??????????????????????????????? | | ??????????????????????????????? | | ??????????????????????????????? | | ?????????????????????????????## | | ?????????????????????????????# | | ?????????????????????????????# | | ?????????????????????????????# | | ?????????????????????????????## | | ??????????????????????####????? | | ?????????????????????##!%##???? | | ?????????????????????#[!*!#???? | | ?????????????????????#! =%#???? | | ????###??????????????##![##???? | | ??### ###?????????????#=##????? | | ??#[ !#?????????????#!#?????? | | ??#[ !!#???#?????????#!#?????? | | ?##[ %!###+########### ####### | | ?#! ==!+[!! | | ?#! [!=+%[ | | ??#|% BB;;##################### | | ??#|%%BB#?????????????????????? | | ??#| %@!#?????????????????????? | | ??###Y###?????????????????????? | | ????#+#???????????????????????? | | ????#?????????????????????????? | | ??????????????????????????????? | | ??????????????????????????????? | | ??????????????????????????????? | | ??????????????????????????????? | | ??????????????????????????????? | | ??????????????????????????????? | | ??????????????????????????????? | | ??????????????????????????????? | | ??????????????????????????????? | | ??????????????????????????????? | | ??????????????????????????????? | | ??????????????????????????????? | | ??????????????????????????????? | | ??????????????????????????????? | | ??????????????????????????????? | | ??????????????????????????????? | | ??????????????????????????????? | | ??????????????????????????????? | | ??????????????????????????????? | | ??????????????????????????????? | | ??????????????????????????????? | +----------------------------------------------------+ Best States ------------- Heat Dissipation 34 Energy Generation 23 Energy Capacity 535 Matter Stores 300 Matter Capacity 400 Sight Range 18 Terrain Scan Density 10 Armor Coverage 225 Evasion (%) 55 Targeting Accuracy 8 Melee Accuracy 5 Recoil Reduction 2 Item Schematics ----------------- Imp. Flight Unit | -8/Materials | Scanalyzed Robot Schematics ------------------ None Fabricated ------------ Nothing Alien Tech Used ----------------- None Achievements -------------- Please Form A Line Challenges ------------ None Game ------ Seed ImpulseStorageGravjet Manual? 0 Play Time 00:36:10 Cumulative 3.6 hours Start 2024.11.12 @ 22:15:41 End 2024.11.12 @ 22:51:21 Sessions 1 Manual Loads 0 Difficulty Rogue Special Mode None Game No. 7 Rogue 7 Adventurer 0 Explorer 0 Win Type - Total 0 Types 0/0/0/0/0/0/0/0/0 Lore% 2 Gallery% 7 Achievement% 8 Wizard Run 0 Options --------- Layout 1 ASCII 0 Keyboard 0 Movement Numpad Keybinds 0 Fullscreen 0 Font 42/SmallcapsGlow Map View 50x35 Zoom Use 0% Tactical HUD 0 Map Filters NONE Filters NONE Steam 1 RUN: f6e603df-df21-4545-9497-881e762decba